[Event "Late-Titled-Tuesday-Blitz-May-28-2024"]
[Site "Chess.com"]
[Date "2024.05.28"]
[Round "4"]
[White "sleeping_in_the_fire"]
[Black "DeTimmerman"]
[Result "0-1"]
[WhiteElo "2435"]
[BlackElo "2750"]
[TimeControl "180+1"]
[EndTime "14:37:44 PDT"]
[Termination "DeTimmerman won on time"]

1. e4 {[%clk 0:03:00.9]} 1... e5 {[%clk 0:02:59.5]} 2. Nf3 {[%clk 0:03:00.7]}
2... Nc6 {[%clk 0:02:58.9]} 3. Bc4 {[%clk 0:02:59.9]} 3... Nf6 {[%clk
0:02:58.5]} 4. d3 {[%clk 0:02:59.5]} 4... Be7 {[%clk 0:02:58]} 5. O-O {[%clk
0:02:57.8]} 5... O-O {[%clk 0:02:58.9]} 6. Nc3 {[%clk 0:02:56.4]} 6... d6 {[%clk
0:02:59.1]} 7. a4 {[%clk 0:02:56.8]} 7... Kh8 {[%clk 0:02:58.6]} 8. h3 {[%clk
0:02:39.4]} 8... Ng8 {[%clk 0:02:55.4]} 9. d4 {[%clk 0:02:38.7]} 9... f5 {[%clk
0:02:49.6]} 10. exf5 {[%clk 0:02:27.3]} 10... e4 {[%clk 0:02:50.5]} 11. Nd2
{[%clk 0:02:19.7]} 11... Bxf5 {[%clk 0:02:46.4]} 12. Bxg8 {[%clk 0:02:19.5]}
12... Kxg8 {[%clk 0:02:32.4]} 13. Ndxe4 {[%clk 0:02:19.5]} 13... d5 {[%clk
0:02:30.7]} 14. Ng3 {[%clk 0:02:15]} 14... Bg6 {[%clk 0:02:30.9]} 15. Be3 {[%clk
0:02:14.3]} 15... Bd6 {[%clk 0:02:28]} 16. Nb5 {[%clk 0:02:10.7]} 16... Bxg3
{[%clk 0:02:22.4]} 17. fxg3 {[%clk 0:02:10.7]} 17... Qe7 {[%clk 0:02:23.3]} 18.
Bf4 {[%clk 0:02:08.2]} 18... Rac8 {[%clk 0:02:22.6]} 19. Re1 {[%clk 0:02:00.4]}
19... Qd7 {[%clk 0:02:20.4]} 20. c3 {[%clk 0:01:38.7]} 20... a6 {[%clk
0:02:18.5]} 21. Na3 {[%clk 0:01:38.5]} 21... Rce8 {[%clk 0:02:17.6]} 22. Qd2
{[%clk 0:01:36.6]} 22... Be4 {[%clk 0:02:17.2]} 23. Nc2 {[%clk 0:01:36.1]} 23...
h6 {[%clk 0:02:10.7]} 24. Nb4 {[%clk 0:01:00.7]} 24... Na5 {[%clk 0:02:05.8]}
25. Rad1 {[%clk 0:00:34.3]} 25... Qxa4 {[%clk 0:01:55.9]} 26. Bxc7 {[%clk
0:00:30]} 26... Nc4 {[%clk 0:01:52.4]} 27. Be5 {[%clk 0:00:21.4]} 27... Nxd2
{[%clk 0:01:51.9]} 28. Rxd2 {[%clk 0:00:15.6]} 28... Rf7 {[%clk 0:01:30.3]} 29.
Rde2 {[%clk 0:00:11.3]} 29... Ref8 {[%clk 0:01:28.3]} 30. Bf4 {[%clk 0:00:08.8]}
30... Qb5 {[%clk 0:01:23.5]} 31. Kh2 {[%clk 0:00:04.8]} 31... a5 {[%clk
0:01:18.6]} 32. Nc2 {[%clk 0:00:02.2]} 32... Qxb2 {[%clk 0:01:12.3]} 33. Ne3
{[%clk 0:00:02]} 33... Qxc3 {[%clk 0:01:11.3]} 34. Ng4 {[%clk 0:00:01.6]} 34...
Rxf4 {[%clk 0:01:08.1]} 0-1

[Event "Late-Titled-Tuesday-Blitz-May-28-2024"]
[Site "Chess.com"]
[Date "2024.05.28"]
[Round "4"]
[White "Jarming"]
[Black "neilbhav"]
[Result "1-0"]
[WhiteElo "2646"]
[BlackElo "2418"]
[TimeControl "180+1"]
[EndTime "14:37:44 PDT"]
[Termination "Jarming won by resignation"]

1. e4 {[%clk 0:03:00.9]} 1... e5 {[%clk 0:03:00.3]} 2. Nf3 {[%clk 0:02:57.6]}
2... Nc6 {[%clk 0:03:00.9]} 3. Bb5 {[%clk 0:02:57.1]} 3... a6 {[%clk 0:03:01.4]}
4. Ba4 {[%clk 0:02:57.3]} 4... Nf6 {[%clk 0:03:01.9]} 5. d3 {[%clk 0:02:56.3]}
5... b5 {[%clk 0:03:01.1]} 6. Bb3 {[%clk 0:02:56.1]} 6... Be7 {[%clk 0:03:01.6]}
7. a3 {[%clk 0:02:56]} 7... O-O {[%clk 0:03:01.5]} 8. Nc3 {[%clk 0:02:56.4]}
8... d6 {[%clk 0:03:01.8]} 9. h3 {[%clk 0:02:54.9]} 9... Nd4 {[%clk 0:03:01.9]}
10. Nxd4 {[%clk 0:02:54]} 10... exd4 {[%clk 0:03:02.8]} 11. Nd5 {[%clk
0:02:54.7]} 11... Be6 {[%clk 0:03:01.5]} 12. Nxe7+ {[%clk 0:02:53.4]} 12... Qxe7
{[%clk 0:03:01.6]} 13. Ba2 {[%clk 0:02:52.7]} 13... Bxa2 {[%clk 0:02:57.7]} 14.
Rxa2 {[%clk 0:02:53.6]} 14... d5 {[%clk 0:02:57]} 15. f3 {[%clk 0:02:52.9]}
15... dxe4 {[%clk 0:02:53.3]} 16. dxe4 {[%clk 0:02:52.8]} 16... c5 {[%clk
0:02:45]} 17. O-O {[%clk 0:02:51]} 17... Rad8 {[%clk 0:02:42.9]} 18. Bg5 {[%clk
0:02:45.1]} 18... Qe5 {[%clk 0:02:42.2]} 19. Qd2 {[%clk 0:02:42.9]} 19... c4
{[%clk 0:02:27.6]} 20. Bh4 {[%clk 0:02:35.6]} 20... d3 {[%clk 0:02:15.5]} 21. a4
{[%clk 0:02:29.9]} 21... dxc2 {[%clk 0:01:59.7]} 22. Qxc2 {[%clk 0:02:26.6]}
22... Rd3 {[%clk 0:02:00.3]} 23. axb5 {[%clk 0:02:24.3]} 23... axb5 {[%clk
0:02:01.2]} 24. Ra5 {[%clk 0:02:18.8]} 24... Rb3 {[%clk 0:01:54.2]} 25. Qxc4
{[%clk 0:02:08]} 25... bxc4 {[%clk 0:01:21.5]} 26. Rxe5 {[%clk 0:02:06.5]} 26...
Rxb2 {[%clk 0:01:22]} 27. Rc5 {[%clk 0:02:06.7]} 27... Rc2 {[%clk 0:01:22.4]}
28. Rf2 {[%clk 0:02:04.8]} 28... Rc3 {[%clk 0:01:11.7]} 29. Kh2 {[%clk
0:01:57.7]} 29... Nd7 {[%clk 0:01:09.7]} 30. Rc7 {[%clk 0:01:53.4]} 30... Ne5
{[%clk 0:01:08.3]} 31. Ra2 {[%clk 0:01:50.6]} 31... h6 {[%clk 0:00:56.4]} 32.
Be1 {[%clk 0:01:46]} 32... Rc1 {[%clk 0:00:46.2]} 33. Bd2 {[%clk 0:01:45.2]}
33... Rd1 {[%clk 0:00:46.6]} 34. Bc3 {[%clk 0:01:41.2]} 34... Nd3 {[%clk
0:00:33]} 35. Rxc4 {[%clk 0:01:40.1]} 35... Rd8 {[%clk 0:00:32.9]} 36. Rd4
{[%clk 0:01:35]} 36... Rxd4 {[%clk 0:00:30.9]} 37. Bxd4 {[%clk 0:01:35.9]} 37...
Nf4 {[%clk 0:00:31.2]} 38. Be3 {[%clk 0:01:34.6]} 38... Ne6 {[%clk 0:00:30.4]}
39. Re2 {[%clk 0:01:34.9]} 39... g5 {[%clk 0:00:29.6]} 40. h4 {[%clk 0:01:34.1]}
40... Kg7 {[%clk 0:00:29.6]} 41. Kg3 {[%clk 0:01:34.3]} 41... Kg6 {[%clk
0:00:28.5]} 42. hxg5 {[%clk 0:01:34.2]} 42... hxg5 {[%clk 0:00:28.6]} 43. Ra2
{[%clk 0:01:34]} 43... f5 {[%clk 0:00:28.5]} 44. exf5+ {[%clk 0:01:31.5]} 44...
Kxf5 {[%clk 0:00:29]} 45. Ra5+ {[%clk 0:01:32]} 45... Kf6 {[%clk 0:00:27.4]} 46.
Ra6 {[%clk 0:01:31.3]} 46... Kf5 {[%clk 0:00:26.6]} 47. Ra5+ {[%clk 0:01:31]}
47... Kf6 {[%clk 0:00:26.8]} 48. Kg4 {[%clk 0:01:30.2]} 48... Rd3 {[%clk
0:00:18.8]} 49. Bxg5+ {[%clk 0:01:28.6]} 49... Nxg5 {[%clk 0:00:18.5]} 50. Rxg5
{[%clk 0:01:29.5]} 50... Rd4+ {[%clk 0:00:18.3]} 51. f4 {[%clk 0:01:29.5]} 51...
Rd2 {[%clk 0:00:18.3]} 52. g3 {[%clk 0:01:29.4]} 52... Rd8 {[%clk 0:00:17.9]}
53. Rb5 {[%clk 0:01:27.5]} 53... Rd3 {[%clk 0:00:17.6]} 54. Rb6+ {[%clk
0:01:27.1]} 1-0

[Event "Late-Titled-Tuesday-Blitz-May-28-2024"]
[Site "Chess.com"]
[Date "2024.05.28"]
[Round "4"]
[White "penguingm1"]
[Black "GlavkonVVS"]
[Result "1-0"]
[WhiteElo "2946"]
[BlackElo "2580"]
[TimeControl "180+1"]
[EndTime "14:37:45 PDT"]
[Termination "penguingm1 won on time"]

1. d4 {[%clk 0:03:00.9]} 1... Nf6 {[%clk 0:03:00.5]} 2. c4 {[%clk 0:03:00.5]}
2... c5 {[%clk 0:03:01.2]} 3. d5 {[%clk 0:03:00.7]} 3... e6 {[%clk 0:03:01.7]}
4. Nc3 {[%clk 0:03:00.8]} 4... exd5 {[%clk 0:03:02.6]} 5. cxd5 {[%clk
0:03:01.7]} 5... d6 {[%clk 0:03:03]} 6. e4 {[%clk 0:03:02]} 6... g6 {[%clk
0:03:03.7]} 7. Nge2 {[%clk 0:03:02.1]} 7... Bg7 {[%clk 0:03:04.3]} 8. Ng3 {[%clk
0:03:02.7]} 8... O-O {[%clk 0:03:02.8]} 9. Be2 {[%clk 0:03:03.1]} 9... Re8
{[%clk 0:03:00.8]} 10. O-O {[%clk 0:03:03.5]} 10... a6 {[%clk 0:03:00.9]} 11. a4
{[%clk 0:03:04]} 11... Nbd7 {[%clk 0:03:01]} 12. h3 {[%clk 0:03:04]} 12... Rb8
{[%clk 0:02:59.7]} 13. Bg5 {[%clk 0:03:03.7]} 13... Qc7 {[%clk 0:02:58.3]} 14.
Qd2 {[%clk 0:03:03.5]} 14... c4 {[%clk 0:02:58.3]} 15. Rac1 {[%clk 0:03:03.7]}
15... b5 {[%clk 0:02:57.2]} 16. axb5 {[%clk 0:03:04.6]} 16... axb5 {[%clk
0:02:57.4]} 17. b4 {[%clk 0:03:05.4]} 17... Ne5 {[%clk 0:02:44.7]} 18. f4 {[%clk
0:03:02.7]} 18... Qb6+ {[%clk 0:02:37.3]} 19. Kh2 {[%clk 0:03:02.8]} 19... Ned7
{[%clk 0:02:33.6]} 20. e5 {[%clk 0:03:03.1]} 20... dxe5 {[%clk 0:02:33]} 21. f5
{[%clk 0:03:03.8]} 21... e4 {[%clk 0:02:26.4]} 22. Be3 {[%clk 0:03:04]} 22...
Qd6 {[%clk 0:02:20.7]} 23. Bf4 {[%clk 0:03:03.5]} 23... Ne5 {[%clk 0:02:02.9]}
24. Ncxe4 {[%clk 0:03:03.6]} 24... Nxe4 {[%clk 0:02:02.7]} 25. Nxe4 {[%clk
0:03:04.5]} 25... Qd8 {[%clk 0:01:54]} 26. fxg6 {[%clk 0:02:09.8]} 26... hxg6
{[%clk 0:01:36.8]} 27. Bg5 {[%clk 0:02:09.8]} 27... Qb6 {[%clk 0:01:20.3]} 28.
Nf6+ {[%clk 0:01:46.1]} 28... Bxf6 {[%clk 0:01:18.7]} 29. Bxf6 {[%clk 0:01:47]}
29... Qd6 {[%clk 0:01:08.6]} 30. Kh1 {[%clk 0:01:42.5]} 30... Kh7 {[%clk
0:00:55.5]} 31. Qg5 {[%clk 0:01:09.3]} 31... Ng4 {[%clk 0:00:06.5]} 32. Bxg4
{[%clk 0:01:07.5]} 32... Qg3 {[%clk 0:00:05.7]} 33. Rc3 {[%clk 0:00:57.5]} 1-0

[Event "Late-Titled-Tuesday-Blitz-May-28-2024"]
[Site "Chess.com"]
[Date "2024.05.28"]
[Round "4"]
[White "NowInChess"]
[Black "topce"]
[Result "0-1"]
[WhiteElo "2215"]
[BlackElo "2388"]
[TimeControl "180+1"]
[EndTime "14:37:52 PDT"]
[Termination "topce won on time"]

1. e4 {[%clk 0:03:00.9]} 1... c5 {[%clk 0:02:59.2]} 2. d3 {[%clk 0:03:01]} 2...
Nc6 {[%clk 0:02:56.8]} 3. g3 {[%clk 0:03:01.3]} 3... g6 {[%clk 0:02:56.4]} 4.
Bg2 {[%clk 0:03:01.7]} 4... Bg7 {[%clk 0:02:56.3]} 5. f4 {[%clk 0:03:02.2]} 5...
d6 {[%clk 0:02:56.3]} 6. Nf3 {[%clk 0:03:02.4]} 6... Bd7 {[%clk 0:02:51.5]} 7.
O-O {[%clk 0:03:01.4]} 7... Qc8 {[%clk 0:02:51.4]} 8. Nc3 {[%clk 0:02:55.9]}
8... Bh3 {[%clk 0:02:49.2]} 9. Be3 {[%clk 0:02:49.5]} 9... h5 {[%clk 0:02:47]}
10. Nh4 {[%clk 0:02:27.3]} 10... Bg4 {[%clk 0:02:39]} 11. Qd2 {[%clk 0:02:22.1]}
11... Nd4 {[%clk 0:02:36.5]} 12. Rf2 {[%clk 0:02:10.4]} 12... Rb8 {[%clk
0:02:33.5]} 13. Raf1 {[%clk 0:02:09.2]} 13... Bf6 {[%clk 0:02:22.9]} 14. f5
{[%clk 0:01:57]} 14... gxf5 {[%clk 0:02:04.5]} 15. h3 {[%clk 0:01:49.8]} 15...
Bxh4 {[%clk 0:01:58.8]} 16. gxh4 {[%clk 0:01:49.1]} 16... f4 {[%clk 0:01:58.4]}
17. Rxf4 {[%clk 0:01:36.8]} 17... Bxh3 {[%clk 0:01:53.8]} 18. Rxf7 {[%clk
0:01:33.8]} 18... Nf6 {[%clk 0:01:51.2]} 19. R7xf6 {[%clk 0:01:20.4]} 19... exf6
{[%clk 0:01:49.7]} 20. Nd5 {[%clk 0:01:18.6]} 20... Rf8 {[%clk 0:01:42.8]} 21.
Nxf6+ {[%clk 0:00:58.7]} 21... Rxf6 {[%clk 0:01:41.5]} 22. Rxf6 {[%clk
0:00:56.9]} 22... Qg4 {[%clk 0:01:40]} 23. Bxd4 {[%clk 0:00:39.5]} 23... cxd4
{[%clk 0:01:35.7]} 24. Rxd6 {[%clk 0:00:35.6]} 24... Ke7 {[%clk 0:01:29.1]} 25.
Rxd4 {[%clk 0:00:24.8]} 25... Rg8 {[%clk 0:01:22.1]} 26. Qb4+ {[%clk 0:00:18.4]}
26... Ke8 {[%clk 0:01:18.1]} 27. Qb5+ {[%clk 0:00:15.9]} 27... Kf7 {[%clk
0:01:11.8]} 28. Rd7+ {[%clk 0:00:14.8]} 28... Qxd7 {[%clk 0:01:11]} 29. Qxd7+
{[%clk 0:00:14.5]} 29... Bxd7 {[%clk 0:01:10.3]} 30. Kf2 {[%clk 0:00:12.6]}
30... Rg4 {[%clk 0:01:08]} 31. Bh3 {[%clk 0:00:07.9]} 31... Rxh4 {[%clk
0:01:07.1]} 32. Bxd7 {[%clk 0:00:07.7]} 32... Rh2+ {[%clk 0:01:07.3]} 33. Kg3
{[%clk 0:00:05.2]} 33... Rxc2 {[%clk 0:01:08.2]} 34. Bf5 {[%clk 0:00:02.1]}
34... Rxb2 {[%clk 0:01:03.1]} 35. a4 {[%clk 0:00:02.3]} 35... Kf6 {[%clk
0:01:02.2]} 36. Kh4 {[%clk 0:00:01.8]} 36... Rb4 {[%clk 0:01:00.8]} 0-1

[Event "Late-Titled-Tuesday-Blitz-May-28-2024"]
[Site "Chess.com"]
[Date "2024.05.28"]
[Round "4"]
[White "Dacean99"]
[Black "kleinebeer98"]
[Result "1-0"]
[WhiteElo "2598"]
[BlackElo "2939"]
[TimeControl "180+1"]
[EndTime "14:37:54 PDT"]
[Termination "Dacean99 won by checkmate"]

1. e4 {[%clk 0:03:00.9]} 1... b6 {[%clk 0:03:00.9]} 2. d4 {[%clk 0:03:00.6]}
2... g6 {[%clk 0:03:01.8]} 3. Bd3 {[%clk 0:02:59.8]} 3... Bg7 {[%clk 0:03:02.5]}
4. Nf3 {[%clk 0:02:59.1]} 4... e6 {[%clk 0:03:02.9]} 5. Qe2 {[%clk 0:02:58.8]}
5... d6 {[%clk 0:03:03]} 6. O-O {[%clk 0:02:57.7]} 6... Ne7 {[%clk 0:03:02.6]}
7. c4 {[%clk 0:02:54.7]} 7... Bb7 {[%clk 0:03:02.9]} 8. Nc3 {[%clk 0:02:54.5]}
8... Nd7 {[%clk 0:03:02.8]} 9. h3 {[%clk 0:02:51.5]} 9... h6 {[%clk 0:03:03]}
10. Re1 {[%clk 0:02:51.4]} 10... c5 {[%clk 0:03:02.5]} 11. d5 {[%clk 0:02:46.7]}
11... e5 {[%clk 0:03:02.5]} 12. a3 {[%clk 0:02:41.4]} 12... g5 {[%clk
0:03:01.4]} 13. b4 {[%clk 0:02:40.5]} 13... Ng6 {[%clk 0:03:00.6]} 14. g3 {[%clk
0:02:39.8]} 14... Nf6 {[%clk 0:02:52]} 15. Nd2 {[%clk 0:02:39.1]} 15... Bc8
{[%clk 0:02:52]} 16. Kg2 {[%clk 0:02:38.5]} 16... Qd7 {[%clk 0:02:50.5]} 17. Rh1
{[%clk 0:02:36.4]} 17... h5 {[%clk 0:02:50.7]} 18. Nf1 {[%clk 0:02:35]} 18...
Nf4+ {[%clk 0:02:48.6]} 19. gxf4 {[%clk 0:02:27.6]} 19... gxf4 {[%clk
0:02:49.5]} 20. Rh2 {[%clk 0:02:22.9]} 20... h4 {[%clk 0:02:38]} 21. Nd2 {[%clk
0:02:13]} 21... Nh5 {[%clk 0:02:35.7]} 22. Nf3 {[%clk 0:02:11]} 22... Ng3 {[%clk
0:02:36.1]} 23. fxg3 {[%clk 0:01:51.8]} 23... hxg3 {[%clk 0:02:37]} 24. Rh1
{[%clk 0:01:52.2]} 24... a5 {[%clk 0:02:37.1]} 25. bxc5 {[%clk 0:01:49.3]} 25...
bxc5 {[%clk 0:02:37.2]} 26. Bd2 {[%clk 0:01:47.8]} 26... Rxh3 {[%clk 0:02:35.1]}
27. Ng5 {[%clk 0:01:42.6]} 27... Rxh1 {[%clk 0:02:28.4]} 28. Rxh1 {[%clk
0:01:43.5]} 28... Rb8 {[%clk 0:02:29]} 29. Nb5 {[%clk 0:01:36.9]} 29... Bf6
{[%clk 0:02:26.4]} 30. Qh5 {[%clk 0:01:33.9]} 30... Ba6 {[%clk 0:02:23.1]} 31.
Qh6 {[%clk 0:01:17.3]} 31... Qe7 {[%clk 0:02:19.6]} 32. Nc7+ {[%clk 0:01:08.1]}
32... Kd7 {[%clk 0:02:14]} 33. Nxa6 {[%clk 0:01:05.5]} 33... Rb2 {[%clk
0:02:14.9]} 34. Nf3 {[%clk 0:01:02.2]} 34... Kc8 {[%clk 0:02:08.1]} 35. Rh5
{[%clk 0:00:50.2]} 35... Kb7 {[%clk 0:02:07.9]} 36. Rf5 {[%clk 0:00:49.7]} 36...
Bh4 {[%clk 0:02:00.7]} 37. Qh7 {[%clk 0:00:45.5]} 37... Kxa6 {[%clk 0:02:00.1]}
38. Rxf7 {[%clk 0:00:45.6]} 38... Qd8 {[%clk 0:01:59.7]} 39. Kh3 {[%clk
0:00:39]} 39... Qc8+ {[%clk 0:01:44.9]} 40. Kxh4 {[%clk 0:00:35.2]} 40... Qb8
{[%clk 0:01:43.9]} 41. Rc7 {[%clk 0:00:28.1]} 41... Qd8+ {[%clk 0:01:41.9]} 42.
Kh5 {[%clk 0:00:22]} 42... Qb8 {[%clk 0:01:40.3]} 43. Rc6+ {[%clk 0:00:21.2]}
43... Rb6 {[%clk 0:01:40.9]} 44. Rxb6+ {[%clk 0:00:21.4]} 44... Qxb6 {[%clk
0:01:41.8]} 45. Qd7 {[%clk 0:00:20.4]} 45... g2 {[%clk 0:01:41.6]} 46. Qb5+
{[%clk 0:00:20.3]} 46... Qxb5 {[%clk 0:01:41.6]} 47. cxb5+ {[%clk 0:00:21.2]}
47... Kb6 {[%clk 0:01:42.2]} 48. Bc4 {[%clk 0:00:20.5]} 48... a4 {[%clk
0:01:42.3]} 49. Kg4 {[%clk 0:00:19.8]} 49... Kc7 {[%clk 0:01:41.7]} 50. Kh3
{[%clk 0:00:20.1]} 50... g1=Q {[%clk 0:01:39.5]} 51. Nxg1 {[%clk 0:00:19.9]}
51... Kb6 {[%clk 0:01:40]} 52. Nf3 {[%clk 0:00:20]} 52... Kc7 {[%clk 0:01:40.7]}
53. Kg4 {[%clk 0:00:20.5]} 53... Kb6 {[%clk 0:01:41.3]} 54. Kf5 {[%clk
0:00:21.1]} 54... Kc7 {[%clk 0:01:42.1]} 55. Ke6 {[%clk 0:00:20.6]} 55... Kb6
{[%clk 0:01:42.7]} 56. Kxd6 {[%clk 0:00:20.7]} 56... Ka7 {[%clk 0:01:43.5]} 57.
Kxc5 {[%clk 0:00:20.8]} 57... Kb7 {[%clk 0:01:43.9]} 58. Kd6 {[%clk 0:00:21.2]}
58... Kb6 {[%clk 0:01:44.4]} 59. Bb4 {[%clk 0:00:18.8]} 59... Kb7 {[%clk
0:01:44.5]} 60. Kxe5 {[%clk 0:00:18.9]} 60... Kb6 {[%clk 0:01:45.4]} 61. Kxf4
{[%clk 0:00:18.7]} 61... Kb7 {[%clk 0:01:46.3]} 62. Ke5 {[%clk 0:00:19.1]} 62...
Kb6 {[%clk 0:01:47.2]} 63. d6 {[%clk 0:00:19]} 63... Kb7 {[%clk 0:01:47]} 64.
Ke6 {[%clk 0:00:19.4]} 64... Kb6 {[%clk 0:01:47.9]} 65. d7 {[%clk 0:00:19.3]}
65... Kb7 {[%clk 0:01:48]} 66. Ke7 {[%clk 0:00:19.3]} 66... Kc7 {[%clk
0:01:47.9]} 67. d8=Q+ {[%clk 0:00:19.4]} 67... Kb7 {[%clk 0:01:48.5]} 68. Bd5+
{[%clk 0:00:19.6]} 68... Ka7 {[%clk 0:01:49.1]} 69. Bc5# {[%clk 0:00:20]} 1-0

[Event "Late-Titled-Tuesday-Blitz-May-28-2024"]
[Site "Chess.com"]
[Date "2024.05.28"]
[Round "4"]
[White "jaramsdal"]
[Black "terrortoast"]
[Result "1-0"]
[WhiteElo "2414"]
[BlackElo "2618"]
[TimeControl "180+1"]
[EndTime "14:38:03 PDT"]
[Termination "jaramsdal won by resignation"]

1. e4 {[%clk 0:02:56]} 1... c6 {[%clk 0:03:00.2]} 2. Nf3 {[%clk 0:02:54.3]} 2...
d5 {[%clk 0:03:00.1]} 3. exd5 {[%clk 0:02:55.2]} 3... cxd5 {[%clk 0:03:01]} 4.
Ne5 {[%clk 0:02:55.8]} 4... Nc6 {[%clk 0:02:58.8]} 5. Bb5 {[%clk 0:02:55.6]}
5... Bd7 {[%clk 0:02:58.6]} 6. Nxd7 {[%clk 0:02:56.2]} 6... Qxd7 {[%clk
0:02:59]} 7. O-O {[%clk 0:02:53.5]} 7... e6 {[%clk 0:02:59.3]} 8. d4 {[%clk
0:02:52.5]} 8... Bd6 {[%clk 0:02:59.4]} 9. c3 {[%clk 0:02:46.2]} 9... Nf6 {[%clk
0:02:59.4]} 10. Bg5 {[%clk 0:02:46.6]} 10... Qc7 {[%clk 0:02:57.9]} 11. h3
{[%clk 0:02:31.4]} 11... Ne4 {[%clk 0:02:57.7]} 12. Be3 {[%clk 0:02:29]} 12...
O-O {[%clk 0:02:53.9]} 13. Nd2 {[%clk 0:02:29]} 13... f5 {[%clk 0:02:45.7]} 14.
Nxe4 {[%clk 0:02:28.5]} 14... fxe4 {[%clk 0:02:42.1]} 15. Qg4 {[%clk 0:02:28.4]}
15... Rf5 {[%clk 0:02:33.4]} 16. f3 {[%clk 0:02:27.4]} 16... exf3 {[%clk
0:02:32.9]} 17. Rxf3 {[%clk 0:02:26.8]} 17... Raf8 {[%clk 0:02:32.6]} 18. Raf1
{[%clk 0:02:24]} 18... Ne7 {[%clk 0:02:30.7]} 19. Bd3 {[%clk 0:02:19.4]} 19...
Rxf3 {[%clk 0:02:29.5]} 20. Rxf3 {[%clk 0:02:17.7]} 20... Rxf3 {[%clk
0:02:27.9]} 21. Qxf3 {[%clk 0:02:18.6]} 21... Qc8 {[%clk 0:02:02.2]} 22. Qh5
{[%clk 0:02:00.5]} 22... Nf5 {[%clk 0:01:49.9]} 23. Bf2 {[%clk 0:01:51.3]} 23...
Qf8 {[%clk 0:01:41.7]} 24. Qf3 {[%clk 0:01:50.4]} 24... Qf7 {[%clk 0:01:32.6]}
25. g4 {[%clk 0:01:43.2]} 25... Ng3 {[%clk 0:01:25.4]} 26. Bxh7+ {[%clk
0:01:39.2]} 26... Kf8 {[%clk 0:01:24.8]} 27. Qxf7+ {[%clk 0:01:32.3]} 27... Kxf7
{[%clk 0:01:25.7]} 28. Bd3 {[%clk 0:01:30.7]} 28... Ne4 {[%clk 0:01:04]} 29.
Bxe4 {[%clk 0:01:28.2]} 29... dxe4 {[%clk 0:01:04.9]} 30. Kf1 {[%clk 0:01:28.7]}
30... Bf4 {[%clk 0:01:02.8]} 31. Ke2 {[%clk 0:01:28.1]} 31... g5 {[%clk
0:00:56]} 32. h4 {[%clk 0:01:25.3]} 32... gxh4 {[%clk 0:00:49.8]} 33. Bxh4
{[%clk 0:01:26.2]} 33... Kg6 {[%clk 0:00:50.6]} 34. c4 {[%clk 0:01:21]} 34... a6
{[%clk 0:00:43.8]} 35. a4 {[%clk 0:01:16.5]} 35... Kf7 {[%clk 0:00:41.1]} 36. b4
{[%clk 0:01:14.3]} 36... Ke8 {[%clk 0:00:39.3]} 37. b5 {[%clk 0:01:14.2]} 37...
Kd7 {[%clk 0:00:39.1]} 38. g5 {[%clk 0:01:12.1]} 38... axb5 {[%clk 0:00:36.9]}
39. axb5 {[%clk 0:01:08.4]} 39... Ke8 {[%clk 0:00:36.6]} 40. g6 {[%clk
0:01:06.4]} 40... Kf8 {[%clk 0:00:36.6]} 41. Bf6 {[%clk 0:01:06.5]} 41... Kg8
{[%clk 0:00:34.5]} 42. c5 {[%clk 0:00:55.3]} 42... Kf8 {[%clk 0:00:34.2]} 43.
Be5 {[%clk 0:00:55]} 43... Bg5 {[%clk 0:00:31.7]} 44. c6 {[%clk 0:00:52.6]}
44... bxc6 {[%clk 0:00:32]} 45. b6 {[%clk 0:00:49]} 45... Bh6 {[%clk 0:00:32.9]}
46. b7 {[%clk 0:00:48.9]} 1-0

[Event "Late-Titled-Tuesday-Blitz-May-28-2024"]
[Site "Chess.com"]
[Date "2024.05.28"]
[Round "4"]
[White "JaackCamel"]
[Black "Hakiki_satranc"]
[Result "1-0"]
[WhiteElo "2240"]
[BlackElo "2396"]
[TimeControl "180+1"]
[EndTime "14:38:09 PDT"]
[Termination "JaackCamel won by checkmate"]

1. d4 {[%clk 0:03:00.9]} 1... Nf6 {[%clk 0:03:00]} 2. c4 {[%clk 0:02:59.4]} 2...
e6 {[%clk 0:02:59.9]} 3. Nc3 {[%clk 0:02:58.7]} 3... Bb4 {[%clk 0:03:00.3]} 4.
Qc2 {[%clk 0:02:58.3]} 4... d5 {[%clk 0:02:55.4]} 5. a3 {[%clk 0:02:55.6]} 5...
Bxc3+ {[%clk 0:02:54.4]} 6. Qxc3 {[%clk 0:02:55.6]} 6... O-O {[%clk 0:02:52.4]}
7. Nf3 {[%clk 0:02:55.2]} 7... dxc4 {[%clk 0:02:51.6]} 8. Qxc4 {[%clk
0:02:55.1]} 8... b6 {[%clk 0:02:51.5]} 9. Bg5 {[%clk 0:02:54.1]} 9... Ba6 {[%clk
0:02:50.7]} 10. Qc2 {[%clk 0:02:53.4]} 10... Nbd7 {[%clk 0:02:47]} 11. e3 {[%clk
0:02:52.2]} 11... Bxf1 {[%clk 0:02:47.9]} 12. Kxf1 {[%clk 0:02:51.8]} 12... c5
{[%clk 0:02:45.7]} 13. dxc5 {[%clk 0:02:50.9]} 13... Rc8 {[%clk 0:02:43.5]} 14.
c6 {[%clk 0:02:38.9]} 14... Nc5 {[%clk 0:02:15.1]} 15. Rd1 {[%clk 0:02:34.2]}
15... Qc7 {[%clk 0:02:06]} 16. Bxf6 {[%clk 0:02:33]} 16... gxf6 {[%clk
0:02:06.9]} 17. Nd4 {[%clk 0:02:24.4]} 17... e5 {[%clk 0:01:25.5]} 18. Nf5
{[%clk 0:02:23]} 18... Kh8 {[%clk 0:01:26.1]} 19. b4 {[%clk 0:02:14.4]} 19...
Ne6 {[%clk 0:01:16.6]} 20. b5 {[%clk 0:01:32.3]} 20... a6 {[%clk 0:01:16.7]} 21.
a4 {[%clk 0:01:31.9]} 21... axb5 {[%clk 0:01:14.9]} 22. axb5 {[%clk 0:01:31.7]}
22... Qa7 {[%clk 0:00:54.6]} 23. h4 {[%clk 0:01:21.5]} 23... Qa5 {[%clk
0:00:51.8]} 24. Qc4 {[%clk 0:01:16.8]} 24... Nc7 {[%clk 0:00:40.5]} 25. Nd6
{[%clk 0:01:14.9]} 25... Ra8 {[%clk 0:00:23.6]} 26. Rh3 {[%clk 0:01:11.6]} 26...
Qa2 {[%clk 0:00:15.1]} 27. Qg4 {[%clk 0:00:46.6]} 27... Qe6 {[%clk 0:00:07.7]}
28. Qh5 {[%clk 0:00:39.4]} 28... Ra2 {[%clk 0:00:02.7]} 29. Rg3 {[%clk
0:00:37.4]} 29... Rg8 {[%clk 0:00:02.3]} 30. Nxf7+ {[%clk 0:00:35.9]} 30... Qxf7
{[%clk 0:00:02]} 31. Qxf7 {[%clk 0:00:35.5]} 31... Rxg3 {[%clk 0:00:01]} 32.
Rd8+ {[%clk 0:00:34.3]} 32... Rg8 {[%clk 0:00:01]} 33. Rxg8# {[%clk 0:00:33.9]}
1-0